bitfinex/quotes_SOLUSD_20240613
["timestamp","ask_amount","ask_price","bid_price","bid_amount"]
[1718239567706,16.1128,154.68,154.59,6.44]
[1718239567912,6.44,154.65,154.59,6.44]
[1718239568112,16.1128,154.68,154.59,6.44]
[1718239568332,6.44,154.65,154.59,6.44]
[1718239568544,6.44,154.64,154.58,12.8622]
[1718239569037,6.44,154.63,154.58,6.4222]
[1718239570346,6.44,154.63,154.58,12.8622]
[1718239570720,6.44,154.63,154.58,6.4222]
[1718239570946,0.17,154.67,154.58,12.8622]
[1718239571131,0.17,154.67,154.6,6.44]
[1718239571132,6.44,154.66,154.6,6.44]
[1718239571714,45.0,154.67,154.6,6.44]
[1718239571914,6.44,154.66,154.6,6.44]
[1718239572116,6.44,154.66,154.6,21.8294]
[1718239572940,6.44,154.65,154.6,15.3894]
[1718239573328,45.0,154.67,154.58,6.4222]
[1718239573329,6.44,154.63,154.58,6.4222]
[1718239575540,6.44,154.6,154.56,16.2503]
[1718239575926,21.8583,154.66,154.56,16.2503]
[1718239576140,6.44,154.61,154.56,16.2503]
[1718239576847,23.0383,154.7,154.56,16.2503]
[1718239577024,23.0383,154.7,154.6,6.4232]
[1718239577347,23.0383,154.7,154.61,6.44]
[1718239577725,260.4413107,154.72,154.62,16.5797]
[1718239578054,260.4413107,154.72,154.62,23.0197]
[1718239578229,6.44,154.68,154.62,23.0197]
[1718239578739,6.44,154.67,154.62,23.0197]
[1718239579147,266.8813107,154.72,154.62,16.5797]
[1718239579335,6.44,154.66,154.62,16.5797]
[1718239579739,6.44,154.65,154.62,16.5797]
[1718239580346,6.44,154.65,154.6,6.4232]
[1718239580837,6.44,154.64,154.6,6.4232]
[1718239581663,6.44,154.66,154.61,6.44]
[1718239584949,286.2013107,154.72,154.63,6.44]
[1718239585156,6.44,154.68,154.63,6.44]
[1718239585832,6.44,154.68,154.6,6.4232]
[1718239586153,6.44,154.65,154.6,6.4232]
[1718239586352,6.44,154.65,154.6,12.8632]
[1718239586556,6.44,154.67,154.61,6.44]
[1718239587051,6.44,154.65,154.6,6.4232]
[1718239587357,6.43,154.65,154.6,6.4232]
[1718239588457,6.43,154.66,154.6,12.8532]
[1718239588851,6.43,154.67,154.61,6.43]
[1718239589455,0.17,154.71,154.61,6.43]
[1718239589661,6.43,154.67,154.62,6.43]
[1718239589960,0.68,154.71,154.6,12.8532]
[1718239589961,6.43,154.66,154.6,12.8532]
[1718239590137,6.43,154.67,154.61,6.43]
[1718239591163,0.68,154.71,154.61,6.43]
[1718239591464,6.43,154.67,154.61,6.43]
[1718239593080,6.43,154.67,154.6,6.4232]
[1718239593393,6.43,154.66,154.6,12.8532]
[1718239596778,6.43,154.67,154.61,6.43]
[1718239597583,65.68,154.71,154.61,6.43]
[1718239597789,6.43,154.67,154.6,6.4232]
[1718239598082,6.43,154.67,154.61,6.43]
[1718239599964,6.43,154.68,154.61,6.43]
[1718239600162,6.43,154.68,154.62,6.43]
[1718239600378,6.43,154.68,154.63,16.5917]
[1718239601166,6.43,154.69,154.63,23.0217]
[1718239601658,6.43,154.68,154.63,16.5917]
[1718239602386,6.43,154.67,154.63,16.5917]
[1718239602589,6.43,154.68,154.63,16.5917]
[1718239602881,65.68,154.71,154.63,16.5917]
[1718239603076,65.68,154.71,154.63,23.0217]
[1718239603077,6.43,154.68,154.63,23.0217]
[1718239603469,45.0,154.71,154.64,6.43]
[1718239603673,6.43,154.7,154.64,6.43]
[1718239604082,6.43,154.69,154.64,6.43]
[1718239605488,6.43,154.7,154.64,6.43]
[1718239607385,6.43,154.69,154.63,23.0217]
[1718239607790,6.43,154.69,154.63,16.5917]
[1718239608086,6.43,154.69,154.63,23.0217]
[1718239609894,45.0,154.71,154.64,6.43]
[1718239610189,6.43,154.7,154.64,6.43]
[1718239611992,6.43,154.69,154.64,6.43]
[1718239613392,6.43,154.69,154.65,6.1663]
[1718239613690,45.0,154.71,154.65,6.1663]
[1718239613691,6.43,154.7,154.65,6.1663]
[1718239614708,6.43,154.69,154.65,6.1663]
[1718239616290,6.43,154.7,154.65,6.1663]
[1718239616492,45.0,154.71,154.65,12.5963]
[1718239616797,7.2713107,154.72,154.66,6.43]
[1718239617297,0.8413107,154.72,154.7,6.43]
[1718239619378,0.8413107,154.72,154.67,16.7075]
[1718239619576,0.8413107,154.72,154.69,6.43]
[1718239620704,0.8413107,154.72,154.67,16.5375]
[1718239620993,7.2713107,154.72,154.67,16.5375]
[1718239622096,0.8413107,154.72,154.67,22.9675]
[1718239622979,6.43,154.71,154.67,16.5375]
[1718239623483,7.2713107,154.72,154.67,22.9675]
[1718239623683,0.8413107,154.72,154.67,22.9675]
[1718239623880,0.8413107,154.72,154.68,6.43]
[1718239624284,0.8413107,154.72,154.67,22.9675]
[1718239624694,0.8413107,154.72,154.68,6.43]
[1718239625795,0.8413107,154.72,154.67,22.9675]
[1718239628297,7.2713107,154.72,154.67,22.9675]
[1718239628486,7.2713107,154.72,154.67,16.5375]
[1718239629615,0.17,154.71,154.63,15.7608]
[1718239629784,6.43,154.68,154.63,15.7608]
[1718239630107,6.43,154.71,154.65,6.43]
[1718239631205,6.43,154.7,154.64,6.43]
[1718239632205,17.4913107,154.72,154.63,15.7608]
[1718239632206,0.8413107,154.72,154.63,15.7608]
[1718239632407,0.8413107,154.72,154.68,6.43]
[1718239632585,0.8413107,154.72,154.69,6.43]
[1718239632785,0.8413107,154.72,154.68,6.43]
[1718239633799,0.8413107,154.72,154.66,6.3908]
[1718239634008,0.8413107,154.72,154.67,6.43]
[1718239635415,7.2713107,154.72,154.66,6.3908]
[1718239635592,0.8413107,154.72,154.66,12.8208]
[1718239635792,7.2713107,154.72,154.66,12.8208]
[1718239636111,0.8413107,154.72,154.67,6.43]
[1718239637710,0.8413107,154.72,154.66,6.3908]
[1718239637911,7.2713107,154.72,154.66,12.8208]
[1718239638889,7.2713107,154.72,154.66,6.3908]
[1718239639091,7.2713107,154.72,154.66,12.8208]
[1718239639290,7.2713107,154.72,154.66,6.43]
[1718239639802,0.8413107,154.72,154.67,6.43]
[1718239640121,45.8413107,154.72,154.67,6.43]
[1718239641010,52.2713107,154.72,154.66,6.43]
[1718239641517,52.2713107,154.72,154.63,15.7608]
[1718239641688,6.43,154.71,154.66,6.43]
[1718239642102,6.43,154.71,154.63,15.7608]
[1718239642303,6.43,154.7,154.64,6.43]
[1718239643604,6.43,154.69,154.63,22.1908]
[1718239644819,6.43,154.7,154.64,6.43]
[1718239645922,45.8413107,154.72,154.65,6.43]
[1718239646119,6.43,154.71,154.65,6.43]
[1718239646836,6.43,154.71,154.63,15.7608]
[1718239647003,6.43,154.71,154.65,6.43]
[1718239648928,6.43,154.7,154.64,6.43]
[1718239649426,6.43,154.71,154.65,6.43]
[1718239649843,0.8413107,154.72,154.64,0.17]
[1718239650010,0.8413107,154.72,154.68,6.43]
[1718239650525,0.8413107,154.72,154.67,6.43]
[1718239651232,7.2713107,154.72,154.66,6.43]
[1718239651935,0.8413107,154.72,154.67,6.43]
[1718239653017,52.2713107,154.72,154.63,15.7608]
[1718239653321,6.43,154.71,154.65,6.43]
[1718239654847,6.43,154.68,154.62,6.43]
[1718239655458,6.43,154.68,154.63,6.43]
[1718239655755,6.43,154.69,154.63,6.43]
[1718239656118,6.43,154.69,154.64,6.43]
[1718239656325,6.43,154.7,154.64,6.43]
[1718239656525,45.0,154.69,154.64,6.43]
[1718239657340,15.4751,154.71,154.64,6.43]
[1718239657535,45.0,154.7,154.65,6.43]
[1718239658120,45.0,154.7,154.66,6.43]
[1718239659019,45.0,154.7,154.65,6.43]
[1718239659324,21.7351,154.71,154.65,6.43]
[1718239663342,15.3051,154.71,154.65,6.43]
[1718239663544,21.7351,154.71,154.65,6.43]
[1718239663754,0.8413107,154.72,154.65,6.43]
[1718239663944,45.8413107,154.72,154.65,6.43]
[1718239664124,6.43,154.71,154.65,6.43]
[1718239665557,6.43,154.71,154.66,6.43]
[1718239666147,52.2713107,154.72,154.66,6.43]
[1718239668537,52.2713107,154.72,154.63,15.2147]
[1718239668858,52.2713107,154.72,154.66,6.43]
[1718239669549,45.8413107,154.72,154.66,6.43]
[1718239669757,52.2713107,154.72,154.66,6.43]
[1718239670249,45.8413107,154.72,154.67,6.43]
[1718239671445,52.2713107,154.72,154.66,6.43]
[1718239672051,6.43,154.71,154.65,6.43]
[1718239672255,51.43,154.7,154.64,6.43]
[1718239672555,51.43,154.69,154.63,21.6447]
[1718239672767,6.43,154.69,154.63,21.6447]
[1718239675043,6.43,154.69,154.63,15.2147]
[1718239675241,6.43,154.69,154.63,21.6447]
[1718239676046,0.34,154.7,154.61,16.2416]
[1718239676371,0.34,154.7,154.59,6.2599]
[1718239676372,6.43,154.66,154.6,6.43]
[1718239676743,6.43,154.66,154.59,6.2599]
[1718239676744,6.43,154.65,154.59,12.6899]
[1718239680062,6.43,154.66,154.6,6.43]
[1718239680379,45.0,154.65,154.57,16.2416]
[1718239684072,0.17,154.64,154.55,6.6271]
[1718239684262,33.1361,154.64,154.53,15.9689]
[1718239684465,6.43,154.59,154.53,22.3989]
[1718239684777,6.43,154.58,154.51,6.325]
[1718239685070,6.43,154.56,154.51,6.43]
[1718239685246,0.17,154.6,154.51,6.43]
[1718239685448,6.43,154.57,154.51,6.43]
[1718239685646,0.17,154.6,154.49,15.1815]
[1718239685873,45.0,154.6,154.49,15.1815]
[1718239686068,6.43,154.57,154.49,15.1815]
[1718239686265,6.43,154.57,154.51,6.43]
[1718239686649,51.43,154.56,154.49,15.1815]
[1718239686854,51.43,154.56,154.5,6.43]
[1718239687947,45.0,154.56,154.5,6.43]
[1718239688176,45.0,154.56,154.51,6.43]
[1718239688662,6.43,154.59,154.53,6.43]
[1718239688974,45.0,154.58,154.53,6.43]
[1718239689990,15.0375,154.61,154.5,0.17]
[1718239690276,15.5255,154.65,154.59,6.43]
[1718239690480,6.2282,154.68,154.56,6.6]
[1718239690679,6.2282,154.68,154.61,6.43]
[1718239690680,6.43,154.67,154.61,6.43]
[1718239691879,6.43,154.66,154.6,6.43]
[1718239692979,45.0,154.65,154.6,6.43]
[1718239693380,51.43,154.65,154.59,6.43]
[1718239693578,6.43,154.65,154.59,6.43]
[1718239693796,6.2282,154.68,154.62,6.43]
[1718239694003,15.5255,154.69,154.62,6.43]
[1718239694173,6.43,154.68,154.62,6.43]
[1718239694357,15.5255,154.69,154.62,6.43]
[1718239694559,6.43,154.68,154.62,6.43]
[1718239694777,7.2997107,154.72,154.57,6.4598]
[1718239694968,13.7297107,154.72,154.66,6.43]
[1718239695166,13.7297107,154.72,154.67,6.43]
[1718239695862,7.2997107,154.72,154.66,6.43]
[1718239696071,13.7297107,154.72,154.66,6.43]
[1718239696375,13.7297107,154.72,154.68,6.43]
[1718239696376,0.8413107,154.72,154.68,6.43]
[1718239696575,0.8413107,154.72,154.69,6.43]
[1718239697960,0.8413107,154.72,154.7,6.43]
[1718239698168,0.8413107,154.72,154.71,6.43]
[1718239698866,0.8413107,154.72,154.69,6.183]
[1718239699180,0.8413107,154.72,154.7,0.17]
[1718239699363,0.8413107,154.72,154.7,0.51]
[1718239699565,0.8413107,154.72,154.7,1.80237161]
[1718239699964,0.8413107,154.72,154.7,21.80237161]
[1718239700168,0.8413107,154.72,154.7,39.76]
[1718239700367,0.8413107,154.72,154.71,0.17]
[1718239700562,0.8413107,154.72,154.71,0.51]
[1718239700799,0.8413107,154.72,154.71,0.68]
[1718239701460,0.8413107,154.72,154.71,0.51]
[1718239702286,21.7899,154.85,154.72,0.17]
[1718239702463,21.7899,154.85,154.76,0.17]
[1718239702671,21.7899,154.85,154.76,20.17]
[1718239702991,21.7899,154.85,154.72,19.59]
[1718239703299,21.7899,154.85,154.73,50.51]
[1718239703461,45.17,154.84,154.73,20.51]
[1718239703663,0.17,154.82,154.71,16.4864]
[1718239703881,0.34,154.82,154.67,35.5328]
[1718239704085,16.3861,154.8,154.67,35.5328]
[1718239704290,45.17,154.79,154.67,35.5328]
[1718239704900,45.0,154.79,154.67,35.5328]
[1718239705117,16.2161,154.8,154.68,0.51]
[1718239705402,45.0,154.79,154.69,0.17]
[1718239705619,45.0,154.79,154.68,20.51]
[1718239705784,45.0,154.79,154.69,0.17]
[1718239706582,45.0,154.79,154.68,20.51]
[1718239706783,6.7313,154.78,154.67,16.2828]
[1718239706986,45.0,154.77,154.67,16.2828]
[1718239710207,45.0,154.77,154.68,0.17]
[1718239710419,45.0,154.77,154.68,0.51]
[1718239714708,6.3913,154.78,154.68,0.51]
[1718239714929,6.3913,154.78,154.69,0.17]
[1718239715087,6.3913,154.78,154.7,0.17]
[1718239715396,6.3913,154.78,154.7,0.34]
[1718239717295,16.2161,154.8,154.7,0.34]
[1718239717609,45.0,154.79,154.71,0.17]
[1718239717813,45.0,154.79,154.71,0.34]
[1718239718910,16.2161,154.8,154.71,0.34]
[1718239719898,275.193,154.84,154.73,23.1284]
[1718239720108,275.193,154.84,154.74,20.51]
[1718239720109,15.593,154.84,154.74,20.51]
[1718239722615,45.0,154.83,154.74,20.51]
[1718239724334,45.0,154.83,154.73,42.3784]
[1718239724618,0.17,154.82,154.73,23.1284]
[1718239724996,45.0,154.83,154.73,23.1284]
[1718239725414,0.17,154.82,154.73,23.1284]
[1718239728823,45.0,154.83,154.73,23.1284]
[1718239732326,0.17,154.82,154.73,23.1284]
[1718239733204,0.34,154.82,154.73,23.1284]
[1718239733430,20.34,154.82,154.73,16.6034]
[1718239733742,0.34,154.81,154.73,16.6034]
[1718239733905,0.17,154.8,154.73,16.6034]
[1718239735415,0.34,154.8,154.73,16.6034]
[1718239736838,45.17,154.81,154.73,16.6034]
[1718239737021,45.0,154.81,154.73,16.6034]
[1718239740437,0.34,154.8,154.73,16.6034]
[1718239740735,0.34,154.79,154.69,21.9925]
[1718239740918,0.17,154.78,154.69,21.9925]
[1718239742138,0.34,154.78,154.69,21.9925]
[1718239742345,0.34,154.77,154.69,21.9925]
[1718239742639,0.17,154.76,154.69,21.9925]
[1718239745523,0.34,154.76,154.69,15.8985]
[1718239745876,15.4975,154.75,154.65,22.0867]
[1718239746028,45.68,154.74,154.65,22.0867]
[1718239746835,45.17,154.74,154.65,22.0867]
[1718239748953,0.34,154.73,154.65,22.0867]
[1718239749134,0.17,154.72,154.65,22.0867]
[1718239749450,0.17,154.72,154.61,15.7574]
[1718239749653,0.34,154.72,154.61,15.7574]
[1718239749834,0.17,154.71,154.61,15.7574]
[1718239750035,20.17,154.71,154.61,15.7574]
[1718239750348,45.0,154.7,154.61,15.7574]
[1718239752948,0.17,154.69,154.61,15.7574]
[1718239754953,45.0,154.7,154.61,15.7574]
[1718239755161,45.0,154.7,154.64,6.42]
[1718239755345,51.42,154.7,154.64,6.42]
[1718239756856,45.0,154.7,154.61,15.7574]
[1718239759759,15.4975,154.75,154.62,0.17]
[1718239759958,15.4975,154.75,154.62,20.68]
[1718239761068,0.17,154.73,154.62,0.51]
[1718239761246,0.34,154.73,154.62,0.51]
[1718239762963,0.34,154.73,154.61,15.7574]
[1718239763152,0.34,154.72,154.61,15.7574]
[1718239763352,0.17,154.71,154.61,15.7574]
[1718239766263,0.17,154.73,154.62,0.51]
[1718239766562,0.51,154.73,154.62,0.51]
[1718239768374,0.17,154.73,154.62,0.51]
[1718239772473,0.34,154.73,154.62,0.51]
[1718239772949,0.34,154.73,154.62,0.17]
[1718239775455,0.34,154.72,154.61,15.7574]
[1718239775651,0.17,154.7,154.61,15.7574]
[1718239775863,0.34,154.7,154.61,15.7574]
[1718239776066,0.17,154.69,154.61,15.7574]
[1718239776948,6.43,154.66,154.61,22.1874]
[1718239777971,6.43,154.67,154.61,22.1874]
[1718239778463,6.43,154.68,154.62,6.43]
[1718239778662,45.0,154.67,154.62,6.43]
[1718239779257,6.4384,154.76,154.63,6.43]
[1718239779456,6.43,154.69,154.64,6.43]
[1718239779868,45.68,154.73,154.64,6.43]
[1718239780078,45.68,154.73,154.65,6.43]
[1718239780278,0.17,154.73,154.66,6.43]
[1718239780463,6.43,154.72,154.66,6.43]
[1718239780665,6.43,154.71,154.66,6.43]
[1718239782775,6.43,154.71,154.65,6.43]
[1718239785287,6.43,154.71,154.66,6.43]
[1718239786566,6.43,154.72,154.66,6.43]
[1718239786767,16.601,154.79,154.67,15.1491]
[1718239787092,6.43,154.75,154.69,6.43]
[1718239788463,51.43,154.74,154.69,6.43]
[1718239788867,45.0,154.74,154.69,6.43]
[1718239789475,45.0,154.74,154.7,6.43]
[1718239790096,45.0,154.75,154.7,6.43]
[1718239790309,16.601,154.79,154.7,6.43]
[1718239790596,6.43,154.77,154.71,6.43]
[1718239791102,15.4251,154.83,154.72,6.43]
[1718239791274,6.43,154.78,154.72,6.43]
[1718239792092,6.43,154.77,154.72,6.43]
[1718239792980,6.43,154.77,154.71,6.43]
[1718239795096,6.43,154.76,154.68,0.34]
[1718239795271,6.43,154.75,154.67,15.1491]
[1718239795597,6.43,154.75,154.7,6.43]
[1718239795772,6.43,154.76,154.7,6.43]
[1718239795968,0.17,154.79,154.7,6.43]
[1718239796184,6.43,154.77,154.71,6.43]
[1718239797097,0.17,154.79,154.71,6.43]
[1718239797301,6.43,154.77,154.71,6.43]
[1718239800276,6.43,154.77,154.68,0.17]
[1718239800481,6.43,154.77,154.71,6.43]
[1718239800677,0.17,154.79,154.71,6.43]
[1718239800905,0.17,154.79,154.72,22.6557]
[1718239801091,6.43,154.77,154.72,22.6557]
[1718239801397,0.17,154.79,154.72,22.6557]
[1718239801581,6.43,154.78,154.72,22.6557]
[1718239802099,6.43,154.79,154.73,6.43]
[1718239802284,45.0,154.78,154.72,16.2257]
[1718239802489,45.0,154.78,154.73,6.43]
[1718239802900,51.43,154.78,154.73,6.43]
[1718239804099,45.0,154.78,154.73,6.43]
[1718239805098,51.43,154.78,154.72,22.6557]
[1718239806093,45.0,154.78,154.73,6.43]
[1718239807806,51.43,154.78,154.72,16.2257]
[1718239808005,51.43,154.78,154.72,22.6557]
[1718239808816,45.0,154.78,154.73,6.43]
[1718239811602,0.17,154.82,154.73,6.43]
[1718239811809,0.17,154.82,154.75,6.43]
[1718239812006,6.43,154.81,154.75,6.43]
[1718239812409,6.6,154.82,154.76,6.43]
[1718239812892,6.43,154.81,154.75,6.43]
[1718239813211,45.0,154.8,154.75,6.43]
[1718239813434,45.0,154.8,154.72,16.2257]
[1718239813595,45.0,154.8,154.75,6.43]
[1718239814724,16.3446107,154.87,154.78,6.43]
[1718239814895,16.3446107,154.87,154.79,6.43]
[1718239815092,6.43,154.84,154.79,6.43]
[1718239815304,6.43,154.84,154.77,15.2352]
[1718239815305,6.43,154.84,154.78,6.43]
[1718239816392,6.43,154.83,154.78,6.43]
[1718239816591,16.3446107,154.87,154.78,6.43]
[1718239816817,6.43,154.83,154.78,6.43]
[1718239817606,16.3446107,154.87,154.78,6.43]
[1718239817812,6.43,154.84,154.78,6.43]
[1718239818628,45.17,154.86,154.78,6.43]
[1718239818834,45.17,154.86,154.8,6.43]
[1718239819037,45.0,154.86,154.8,6.43]
[1718239819222,0.8413107,154.87,154.81,6.43]
[1718239819534,0.8413107,154.87,154.77,15.2352]
[1718239819535,6.43,154.86,154.8,6.43]
[1718239820215,6.43,154.86,154.81,6.43]
[1718239820958,6.43,154.86,154.77,15.2352]
[1718239821231,6.43,154.86,154.8,6.43]
[1718239821810,0.8413107,154.87,154.8,6.43]
[1718239822010,6.43,154.86,154.8,6.43]
[1718239822225,6.43,154.86,154.77,15.2352]
[1718239822441,45.0,154.85,154.8,6.43]
[1718239823114,51.43,154.85,154.77,15.2352]
[1718239823313,51.43,154.85,154.79,6.43]
[1718239824237,45.0,154.85,154.8,6.43]
[1718239825137,0.8413107,154.87,154.81,6.43]
[1718239825329,7.2713107,154.87,154.82,6.43]
[1718239825540,6.43,154.86,154.81,6.43]
[1718239825830,7.2713107,154.87,154.81,6.43]
[1718239826823,45.0,154.86,154.81,6.43]
[1718239827624,51.43,154.86,154.77,15.2352]
[1718239827926,6.43,154.85,154.8,6.43]
[1718239828326,6.43,154.85,154.77,15.2352]
[1718239828518,51.43,154.84,154.79,6.43]
[1718239828837,45.0,154.84,154.79,6.43]
[1718239829418,45.0,154.84,154.77,15.2352]
[1718239829617,6.43,154.8,154.73,16.4873]
[1718239830044,6.43,154.8,154.75,6.43]
[1718239830337,6.43,154.79,154.74,6.43]
[1718239830544,6.43,154.79,154.73,16.4873]
[1718239830719,6.43,154.77,154.66,21.2976]
[1718239830919,6.43,154.77,154.71,6.43]
[1718239831938,6.43,154.78,154.72,6.43]
[1718239832123,0.17,154.8,154.65,100.0]
[1718239832327,6.43,154.8,154.74,6.43]
[1718239833452,45.0,154.79,154.74,6.43]
[1718239833945,0.17,154.81,154.74,6.43]
[1718239834128,15.7804,154.85,154.73,15.9102]
[1718239834328,6.43,154.83,154.77,6.43]
[1718239835846,0.17,154.84,154.77,6.43]
[1718239836044,6.43,154.82,154.76,6.43]
[1718239836852,6.43,154.81,154.76,6.43]
[1718239837546,6.43,154.82,154.76,6.43]
[1718239839754,45.51,154.84,154.76,6.43]
[1718239839940,6.43,154.82,154.76,6.43]
[1718239840850,6.43,154.81,154.76,6.43]
[1718239841029,6.43,154.81,154.75,6.43]
[1718239841532,45.0,154.8,154.75,6.43]
[1718239841727,51.43,154.8,154.75,6.43]
[1718239841933,51.43,154.8,154.74,6.43]
[1718239842132,6.43,154.79,154.73,22.3402]
[1718239842853,51.43,154.8,154.74,6.43]
[1718239846054,51.43,154.8,154.75,6.43]
[1718239846242,6.43,154.8,154.75,6.43]
[1718239850548,6.43,154.8,154.74,6.43]
[1718239851259,15.7804,154.85,154.74,0.17]
[1718239851556,6.43,154.83,154.77,6.43]
[1718239851938,6.43,154.82,154.76,6.43]
[1718239852348,15.7804,154.85,154.76,6.43]
[1718239852663,45.17,154.84,154.76,6.43]
[1718239852850,6.43,154.81,154.76,6.43]
[1718239853250,6.43,154.81,154.73,15.9102]
[1718239853448,51.43,154.8,154.74,6.43]
[1718239853965,51.43,154.8,154.73,15.9102]
[1718239854166,51.43,154.8,154.74,6.43]
[1718239854664,0.17,154.84,154.74,6.43]
[1718239854844,6.43,154.8,154.73,15.9102]
[1718239855166,6.43,154.8,154.74,6.43]
[1718239856566,6.43,154.8,154.73,15.9102]
[1718239856767,6.43,154.8,154.74,6.43]
[1718239856984,6.43,154.77,154.72,6.2951]
[1718239857348,6.43,154.78,154.72,6.2951]
[1718239857544,45.0,154.79,154.72,12.7251]
[1718239857852,6.43,154.78,154.73,6.43]
[1718239858765,6.43,154.78,154.72,12.7251]
[1718239860554,45.0,154.77,154.72,12.7251]
[1718239861863,45.0,154.77,154.72,6.2951]
[1718239862062,45.0,154.77,154.72,12.7251]
[1718239862577,45.0,154.77,154.69,15.9564]
[1718239862745,0.51,154.78,154.69,15.9564]
[1718239862746,6.43,154.73,154.69,15.9564]
[1718239863363,6.43,154.73,154.68,6.5173]
[1718239863558,6.43,154.71,154.65,16.4667]
[1718239863765,6.43,154.7,154.65,16.4667]
[1718239863963,6.43,154.7,154.65,22.8967]
[1718239865268,6.43,154.7,154.65,16.4667]
[1718239865663,6.43,154.7,154.65,22.8967]
[1718239866053,6.43,154.71,154.65,22.8967]
[1718239866558,6.43,154.74,154.68,6.43]
[1718239866754,45.0,154.73,154.68,6.43]
[1718239866956,51.43,154.73,154.65,16.4667]
[1718239867155,6.43,154.72,154.66,6.43]
[1718239867374,51.43,154.73,154.67,6.43]
[1718239867574,51.43,154.73,154.68,6.43]
[1718239867963,51.43,154.73,154.67,6.43]
[1718239868160,6.43,154.72,154.67,6.43]
[1718239868364,6.43,154.72,154.66,6.43]
[1718239869077,6.43,154.72,154.65,16.4667]
[1718239869078,6.43,154.7,154.65,16.4667]
[1718239869961,45.0,154.69,154.61,15.5934]
[1718239870170,6.43,154.66,154.61,22.0234]
[1718239870481,6.43,154.66,154.61,15.5934]
[1718239872568,6.43,154.66,154.61,22.0234]
[1718239872773,6.43,154.68,154.62,6.43]
[1718239873268,6.43,154.7,154.64,6.43]
[1718239873965,6.43,154.71,154.65,6.43]
[1718239874463,16.6171,154.73,154.65,6.43]
[1718239874665,6.43,154.71,154.65,6.43]
[1718239874886,45.0,154.7,154.65,6.43]
[1718239875884,51.43,154.7,154.64,6.43]
[1718239876087,51.43,154.7,154.65,6.43]
[1718239876566,51.43,154.7,154.61,15.5934]
[1718239876881,51.43,154.7,154.64,6.43]
[1718239879365,51.43,154.7,154.65,6.43]
[1718239880676,45.0,154.7,154.62,0.17]
[1718239881008,45.0,154.7,154.65,6.43]
[1718239881784,51.43,154.7,154.64,6.43]
[1718239881990,6.43,154.69,154.64,6.43]
[1718239882167,51.43,154.7,154.65,6.43]